fUSD/lending_fUSD_20241224
["ID","MTS","AMOUNT","RATE_DAILY","PERIOD"]
[346494403,1735008364645,-1466.45,0.00014246,2]
[346494404,1735008364690,-1814.88,0.00014246,2]
[346494405,1735008364738,-617.6,0.00014246,2]
[346494406,1735008364781,-643.35,0.00014246,2]
[346494407,1735008364827,-1281.83,0.00014246,2]
[346494408,1735008364869,-3515.62,0.00014246,2]
[346494409,1735008364911,-529.92,0.00014246,2]
[346494410,1735008364956,-1029.62,0.00014246,2]
[346494411,1735008364999,-558.06,0.00014246,2]
[346494412,1735008365042,-500.0,0.00014246,2]
[346494413,1735008365083,-3788.5,0.00014246,2]
[346494414,1735008365122,-500.0,0.00014246,2]
[346494415,1735008365163,-5650.78,0.00014246,2]
[346494416,1735008365203,-500.0,0.00014246,2]
[346494417,1735008365245,-500.0,0.00014246,2]
[346494418,1735008365285,-500.0,0.00014246,2]
[346494419,1735008365326,-2552.19,0.00014246,2]
[346494420,1735008365367,-822.02,0.00014246,2]
[346494421,1735008365406,-344.47252138,0.00014246,2]
[346494422,1735008365446,-2466.62,0.00014246,2]
[346494423,1735008365484,-1364.37,0.00014246,2]
[346494424,1735008365523,-500.0,0.00014246,2]
[346494425,1735008365564,-1322.16,0.00014246,2]
[346494426,1735008365604,-500.0,0.00014246,2]
[346494427,1735008365645,-577.57,0.00014246,2]
[346494428,1735008365687,-500.0,0.00014246,2]
[346494429,1735008365730,-780.33,0.00014246,2]
[346494430,1735008365773,-646.65,0.00014246,2]
[346494431,1735008365817,-1193.88,0.00014246,2]
[346494432,1735008365859,-623.63,0.00014246,2]
[346494433,1735008365901,-580.82,0.00014246,2]
[346494434,1735008365941,-3239.76,0.00014246,2]
[346494435,1735008365982,-500.0,0.00014246,2]
[346494436,1735008366022,-2328.87,0.00014246,2]
[346494437,1735008366062,-1002.87,0.00014246,2]
[346494438,1735008366100,-500.0,0.00014246,2]
[346494439,1735008366138,-500.0,0.00014246,2]
[346494440,1735008366177,-959.99,0.00014246,2]
[346494441,1735008366215,-1416.66,0.00014246,2]
[346494442,1735008366254,-500.0,0.00014246,2]
[346494443,1735008366292,-506.78,0.00014246,2]
[346494444,1735008366332,-1669.57,0.00014246,2]
[346494445,1735008366370,-2621.1,0.00014246,2]
[346494446,1735008366408,-1420.13,0.00014246,2]
[346494447,1735008366446,-4264.33,0.00014246,2]
[346494448,1735008366484,-500.0,0.00014246,2]
[346494449,1735008366523,-1764.22,0.00014246,2]
[346494450,1735008366562,-500.0,0.00014246,2]
[346494451,1735008366601,-1115.44,0.00014246,2]
[346494452,1735008366640,-500.0,0.00014246,2]
[346494453,1735008366680,-753.37,0.00014246,2]
[346494454,1735008366722,-930.18,0.00014246,2]
[346494455,1735008366768,-500.0,0.00014246,2]
[346494456,1735008366808,-887.89,0.00014246,2]
[346494457,1735008366849,-766.14,0.00014246,2]
[346494458,1735008366890,-509.52,0.00014246,2]
[346494459,1735008366929,-152.503374,0.00014246,2]
[346494460,1735008366967,-409.33374764,0.00014246,2]
[346494461,1735008367006,-453.53,0.00014246,2]
[346494462,1735008367046,-1303.9,0.00014246,2]
[346494463,1735008367087,-2099.72,0.00014246,2]
[346494464,1735008367126,-559.04,0.00014246,2]
[346494465,1735008367165,-500.13,0.00014246,2]
[346494466,1735008367205,-500.0,0.00014246,2]
[346494467,1735008367246,-512.65,0.00014246,2]
[346494468,1735008367287,-3456.31,0.00014246,2]
[346494469,1735008367328,-2143.34,0.00014246,2]
[346494470,1735008367367,-3437.62,0.00014246,2]
[346494471,1735008367407,-773.11,0.00014246,2]
[346494472,1735008367447,-267.70549337,0.00014246,2]
[346494473,1735008367488,-2693.54,0.00014246,2]
[346494474,1735008367527,-500.0,0.00014246,2]
[346494475,1735008367567,-500.0,0.00014246,2]
[346494476,1735008367606,-500.0,0.00014246,2]
[346494477,1735008367644,-1125.58,0.00014246,2]
[346494478,1735008367685,-590.19,0.00014246,2]
[346494479,1735008367725,-1578.57,0.00014246,2]
[346494480,1735008367766,-8945.45,0.00014246,2]
[346494481,1735008367805,-500.0,0.00014246,2]
[346494482,1735008367845,-500.0,0.00014246,2]
[346494483,1735008367887,-508.91,0.00014246,2]
[346494484,1735008367924,-1191.67,0.00014246,2]
[346494485,1735008367963,-2612.42,0.00014246,2]
[346494486,1735008368004,-1210.74,0.00014246,2]
[346494487,1735008368045,-558.07,0.00014246,2]
[346494488,1735008368085,-500.0,0.00014246,2]
[346494489,1735008368126,-568.34,0.00014246,2]
[346494490,1735008368164,-1348.03,0.00014246,2]
[346494491,1735008368204,-10193.59,0.00014246,2]
[346494492,1735008368245,-1369.59,0.00014246,2]
[346494493,1735008368285,-2133.91,0.00014246,2]
[346494494,1735008368326,-568.34,0.00014246,2]
[346494495,1735008368365,-500.0,0.00014246,2]
[346494496,1735008368403,-1756.55,0.00014246,2]
[346494497,1735008368443,-1363.69,0.00014246,2]
[346494498,1735008368482,-532.91,0.00014246,2]
[346494499,1735008368522,-1558.45,0.00014246,2]
[346494500,1735008368562,-3733.97,0.00014246,2]
[346494501,1735008368601,-500.0,0.00014246,2]
[346494502,1735008368640,-1767.13,0.00014246,2]
[346494503,1735008368685,-500.0,0.00014246,2]
[346494504,1735008368724,-782.28,0.00014246,2]
[346494505,1735008368766,-1364.69,0.00014246,2]
[346494506,1735008368806,-632.48,0.00014246,2]
[346494507,1735008368843,-667.95,0.00014246,2]
[346494508,1735008368882,-818.47,0.00014246,2]
[346494509,1735008368921,-500.0,0.00014246,2]
[346494510,1735008368961,-1163.35,0.00014246,2]
[346494511,1735008368998,-500.0,0.00014246,2]
[346494512,1735008369036,-738.63,0.00014246,2]
[346494513,1735008369079,-691.09,0.00014246,2]
[346494514,1735008369119,-537.68,0.00014246,2]
[346494515,1735008369158,-1107.97,0.00014246,2]
[346494516,1735008369196,-1478.36,0.00014246,2]
[346494517,1735008369234,-500.0,0.00014246,2]
[346494518,1735008369273,-500.0,0.00014246,2]
[346494519,1735008369312,-1971.01,0.00014246,2]
[346494520,1735008369351,-2121.84,0.00014246,2]
[346494521,1735008369389,-500.0,0.00014246,2]
[346494522,1735008369430,-4793.72,0.00014246,2]
[346494523,1735008369468,-2885.57,0.00014246,2]
[346494524,1735008369516,-500.0,0.00014246,2]
[346494525,1735008369558,-933.0,0.00014246,2]
[346494526,1735008369600,-500.0,0.00014246,2]
[346494527,1735008369639,-1764.0,0.00014246,2]
[346494528,1735008369679,-500.0,0.00014246,2]
[346494529,1735008370003,-500.0,0.00014246,2]
[346494530,1735008370046,-2178.22,0.00014246,2]
[346494531,1735008370087,-4353.99,0.00014246,2]
[346494532,1735008370126,-794.29,0.00014246,2]
[346494533,1735008370166,-500.0,0.00014246,2]
[346494534,1735008370206,-500.0,0.00014246,2]
[346494535,1735008370246,-500.0,0.00014246,2]
[346494536,1735008370285,-500.0,0.00014246,2]
[346494537,1735008370328,-676.236,0.0001432,2]
[346494538,1735008370369,-2062.797,0.00014359,2]
[346494539,1735008370409,-160.442,0.00014359,2]
[346494540,1735008370448,-3236.93814739,0.00014419,2]
[346494541,1735008370487,-781.62067888,0.00014419,2]
[346494542,1735008370526,-47259.5541,0.0001442,2]
[346494543,1735008370564,-500.0,0.0001451,2]
[346494544,1735008370605,-500.0,0.0001452,2]
[346494545,1735008370645,-500.0,0.0001452,2]
[346494546,1735008370687,-551.7,0.0001452,2]
[346494547,1735008370729,-500.0,0.0001452,2]
[346494548,1735008370769,-500.0,0.0001452,2]
[346494549,1735008370810,-500.0,0.0001452,2]
[346494550,1735008370853,-463.22261116,0.0001452,2]
[346494551,1735008370893,-500.0,0.0001452,2]
[346494552,1735008370934,-500.0,0.0001452,2]
[346494553,1735008370974,-500.0,0.0001452,2]
[346494554,1735008371015,-500.0,0.0001452,2]
[346494555,1735008371056,-500.0,0.0001452,2]
[346494556,1735008371096,-500.0,0.0001452,2]
[346494557,1735008371136,-500.0,0.0001452,2]
[346494558,1735008371177,-500.0,0.0001452,2]
[346494559,1735008371217,-500.0,0.0001452,2]
[346494560,1735008371258,-500.0,0.0001452,2]
[346494561,1735008371300,-500.0,0.0001452,2]
[346494562,1735008371341,-500.0,0.0001452,2]
[346494563,1735008371382,-500.0,0.0001452,2]
[346494564,1735008371421,-506.43,0.0001452,2]
[346494565,1735008371459,-500.0,0.0001452,2]
[346494566,1735008371497,-544.1,0.0001452,2]
[346494567,1735008371534,-500.0,0.0001452,2]
[346494568,1735008371576,-500.0,0.0001452,2]
[346494569,1735008371615,-500.0,0.0001452,2]
[346494570,1735008371654,-500.0,0.0001452,2]
[346494571,1735008371691,-500.0,0.0001452,2]
[346494572,1735008371727,-553.98,0.0001452,2]
[346494573,1735008371765,-500.0,0.0001452,2]
[346494574,1735008371804,-500.0,0.0001452,2]
[346494575,1735008371839,-500.0,0.0001452,2]
[346494576,1735008371875,-500.0,0.0001452,2]
[346494577,1735008371909,-500.0,0.0001452,2]
[346494578,1735008371943,-500.0,0.0001452,2]
[346494579,1735008371979,-500.0,0.0001452,2]
[346494580,1735008372014,-500.0,0.0001452,2]
[346494581,1735008372051,-500.0,0.0001452,2]
[346494582,1735008372085,-500.0,0.0001452,2]
[346494583,1735008372121,-563.4,0.0001452,2]
[346494584,1735008372156,-608.27,0.0001452,2]
[346494585,1735008372191,-1280.82,0.0001452,2]
[346494586,1735008372225,-500.0,0.0001452,2]
[346494587,1735008372260,-737.23,0.0001452,2]
[346494588,1735008372295,-500.0,0.0001452,2]
[346494589,1735008372329,-500.0,0.0001452,2]
[346494590,1735008372363,-500.0,0.0001452,2]
[346494591,1735008372398,-886.63,0.0001452,2]
[346494592,1735008372433,-510.06,0.0001452,2]
[346494593,1735008372466,-567.0616296,0.0001452,2]
[346494594,1735008372500,-500.0,0.0001452,2]
[346494595,1735008372536,-500.0,0.0001452,2]
[346494596,1735008372574,-500.0,0.0001452,2]
[346494597,1735008372610,-500.0,0.0001452,2]
[346494598,1735008372647,-500.0,0.0001452,2]
[346494599,1735008372685,-500.0,0.0001452,2]
[346494600,1735008372723,-542.893518,0.0001452,2]
[346494601,1735008372762,-530.28,0.0001452,2]
[346494602,1735008372800,-500.0,0.0001452,2]
[346494603,1735008372837,-547.102636,0.0001452,2]
[346494604,1735008372872,-1290.02,0.0001452,2]
[346494605,1735008372908,-541.94,0.0001452,2]
[346494606,1735008372945,-500.0,0.0001452,2]
[346494607,1735008372980,-500.0,0.0001452,2]
[346494608,1735008373017,-500.0,0.0001452,2]
[346494609,1735008373051,-500.0,0.0001452,2]
[346494610,1735008373086,-500.0,0.0001452,2]
[346494611,1735008373122,-500.0,0.0001452,2]
[346494612,1735008373157,-804.4,0.0001452,2]
[346494613,1735008373193,-533.37090283,0.0001452,2]
[346494614,1735008373229,-997.08,0.0001452,2]
[346494615,1735008373265,-561.01,0.0001452,2]
[346494616,1735008373304,-500.0,0.0001452,2]
[346494617,1735008373341,-500.0,0.0001452,2]
[346494618,1735008373376,-500.0,0.0001452,2]
[346494619,1735008373412,-500.0,0.0001452,2]
[346494620,1735008373447,-500.0,0.0001452,2]
[346494621,1735008373481,-500.0,0.0001452,2]
[346494622,1735008373516,-500.0,0.0001452,2]
[346494623,1735008373551,-500.0,0.0001452,2]
[346494624,1735008373589,-500.0,0.0001452,2]
[346494625,1735008373626,-500.0,0.0001452,2]
[346494626,1735008373661,-500.0,0.0001452,2]
[346494627,1735008373698,-645.95,0.0001452,2]
[346494628,1735008373735,-500.0,0.0001452,2]
[346494629,1735008373772,-955.96,0.0001452,2]
[346494630,1735008373809,-678.16,0.0001452,2]
[346494631,1735008373846,-992.94,0.0001452,2]
[346494632,1735008373883,-500.0,0.0001452,2]
[346494633,1735008373920,-500.0,0.0001452,2]
[346494634,1735008373959,-500.0,0.0001452,2]
[346494635,1735008373997,-500.0,0.0001452,2]
[346494636,1735008374033,-500.0,0.0001452,2]
[346494637,1735008374074,-500.0,0.0001452,2]
[346494638,1735008374111,-500.0,0.0001452,2]
[346494639,1735008374149,-500.0,0.0001452,2]
[346494640,1735008374188,-500.0,0.0001452,2]
[346494641,1735008374227,-500.0,0.0001452,2]
[346494642,1735008374264,-702.02,0.0001452,2]
[346494643,1735008374302,-513.89,0.0001452,2]
[346494644,1735008374341,-806.39,0.0001452,2]
[346494645,1735008374379,-500.0,0.0001452,2]
[346494646,1735008374418,-500.0,0.0001452,2]
[346494647,1735008374457,-559.74,0.0001452,2]
[346494648,1735008374501,-500.0,0.0001452,2]
[346494649,1735008374540,-500.0,0.0001452,2]
[346494650,1735008374582,-927.56,0.0001452,2]
[346494651,1735008374622,-500.0,0.0001452,2]
[346494652,1735008374660,-607.98,0.0001452,2]
[346494653,1735008374706,-500.0,0.0001452,2]
[346494654,1735008374744,-578.12,0.0001452,2]
[346494655,1735008374785,-986.24,0.0001452,2]
[346494656,1735008374824,-500.0,0.0001452,2]
[346494657,1735008374864,-1254.85,0.0001452,2]
[346494658,1735008374902,-500.0,0.0001452,2]
[346494659,1735008374939,-635.52,0.0001452,2]
[346494660,1735008374978,-851.14,0.0001452,2]
[346494661,1735008375018,-944.54,0.0001452,2]
[346494662,1735008375058,-490.31223539,0.0001452,2]
[346494663,1735008375097,-659.66,0.0001452,2]
[346494664,1735008375134,-681.87,0.0001452,2]
[346494665,1735008375177,-792.71,0.0001452,2]
[346494666,1735008375219,-633.9,0.0001452,2]
[346494667,1735008375262,-500.0,0.0001452,2]
[346494668,1735008375304,-650.54,0.0001452,2]
[346494669,1735008375346,-550.54,0.0001452,2]
[346494670,1735008375386,-500.0,0.0001452,2]
[346494671,1735008375428,-531.13,0.0001452,2]
[346494672,1735008375470,-500.0,0.0001452,2]
[346494673,1735008375512,-500.0,0.0001452,2]
[346494674,1735008375551,-748.46,0.0001452,2]
[346494675,1735008375592,-500.0,0.0001452,2]
[346494676,1735008375633,-221.15118831,0.0001452,2]
[346494677,1735008375674,-158.87828127,0.0001452,2]
[346494678,1735008375992,-500.0,0.0001452,2]
[346494679,1735008376036,-792.52,0.0001452,2]
[346494680,1735008376076,-500.0,0.0001452,2]
[346494681,1735008376114,-637.62,0.0001452,2]
[346494682,1735008376152,-500.0,0.0001452,2]
[346494683,1735008376190,-621.42,0.0001452,2]
[346494684,1735008376227,-929.27,0.0001452,2]
[346494685,1735008376265,-500.0,0.0001452,2]
[346494686,1735008376305,-276.76415091,0.0001452,2]
[346494687,1735008376344,-500.0,0.0001452,2]
[346494688,1735008376381,-734.71,0.0001452,2]
[346494689,1735008376417,-817.51,0.0001452,2]
[346494690,1735008376453,-783.59,0.0001452,2]
[346494691,1735008376491,-500.0,0.0001452,2]
[346494692,1735008376529,-1262.85,0.0001452,2]
[346494693,1735008376566,-1213.34,0.0001452,2]
[346494694,1735008376605,-500.0,0.0001452,2]
[346494695,1735008376642,-955.21,0.0001452,2]
[346494696,1735008376680,-500.0,0.0001452,2]
[346494697,1735008376721,-837.58,0.0001452,2]
[346494698,1735008376760,-553.61,0.0001452,2]
[346494699,1735008376800,-1312.26,0.0001452,2]
[346494700,1735008376837,-752.54,0.0001452,2]
[346494701,1735008376875,-1425.9,0.0001452,2]
[346494702,1735008376912,-694.76,0.0001452,2]
[346494703,1735008376951,-500.0,0.0001452,2]
[346494704,1735008376990,-500.0,0.0001452,2]
[346494705,1735008377028,-820.68,0.0001452,2]
[346494706,1735008377068,-500.0,0.0001452,2]
[346494707,1735008377105,-500.0,0.0001452,2]
[346494708,1735008377142,-1141.13,0.0001452,2]
[346494709,1735008377180,-500.0,0.0001452,2]
[346494710,1735008377219,-500.0,0.0001452,2]
[346494711,1735008377256,-500.0,0.0001452,2]
[346494712,1735008377292,-500.0,0.0001452,2]
[346494713,1735008377334,-538.21,0.0001452,2]
[346494714,1735008377373,-1044.61,0.0001452,2]
[346494715,1735008377412,-611.72554645,0.0001452,2]
[346494716,1735008377450,-516.57,0.0001452,2]
[346494717,1735008377487,-1067.68,0.0001452,2]
[346494718,1735008377524,-500.0,0.0001452,2]
[346494719,1735008377562,-500.0,0.0001452,2]
[346494720,1735008377600,-1376.58,0.0001452,2]
[346494721,1735008377638,-500.0,0.0001452,2]
[346494722,1735008377679,-500.0,0.0001452,2]
[346494723,1735008377720,-935.71,0.0001452,2]
[346494724,1735008377759,-500.0,0.0001452,2]
[346494725,1735008377801,-564.74,0.0001452,2]
[346494726,1735008377838,-577.33,0.0001452,2]
[346494727,1735008377876,-500.0,0.0001452,2]
[346494728,1735008377914,-572.09,0.0001452,2]
[346494729,1735008377956,-500.0,0.0001452,2]
[346494730,1735008377995,-566.24,0.0001452,2]
[346494731,1735008378033,-245.18830889,0.0001452,2]
[346494732,1735008378072,-500.0,0.0001452,2]
[346494733,1735008378109,-597.0,0.0001452,2]
[346494734,1735008378146,-553.82,0.0001452,2]
[346494735,1735008378189,-500.0,0.0001452,2]
[346494736,1735008378230,-500.0,0.0001452,2]
[346494737,1735008378268,-803.29,0.0001452,2]
[346494738,1735008378307,-645.31,0.0001452,2]
[346494739,1735008378345,-1090.69,0.0001452,2]
[346494740,1735008378383,-500.0,0.0001452,2]
[346494741,1735008378420,-500.0,0.0001452,2]
[346494742,1735008378457,-500.0,0.0001452,2]
[346494743,1735008378494,-860.37,0.0001452,2]
[346494744,1735008378530,-500.0,0.0001452,2]
[346494745,1735008378567,-500.0,0.0001452,2]
[346494746,1735008378606,-616.47,0.0001452,2]
[346494747,1735008378644,-500.0,0.0001452,2]
[346494748,1735008378682,-637.23,0.0001452,2]
[346494749,1735008378719,-672.28,0.0001452,2]
[346494750,1735008378759,-716.05,0.0001452,2]
[346494751,1735008378801,-500.0,0.0001452,2]
[346494752,1735008378839,-500.0,0.0001452,2]
[346494753,1735008378876,-883.47,0.0001452,2]
[346494754,1735008378914,-1581.16,0.0001452,2]
[346494755,1735008378956,-500.0,0.0001452,2]
[346494756,1735008378996,-3503.34,0.0001452,2]
[346494757,1735008379034,-657.4,0.0001452,2]
[346494758,1735008379072,-500.0,0.0001452,2]
[346494759,1735008379109,-566.15,0.0001452,2]
[346494760,1735008379148,-500.0,0.0001452,2]
[346494761,1735008379187,-500.0,0.0001452,2]
[346494762,1735008379229,-2027.11,0.0001452,2]
[346494763,1735008379268,-500.0,0.0001452,2]
[346494764,1735008379309,-3591.24,0.0001452,2]
[346494765,1735008379348,-500.0,0.0001452,2]
[346494766,1735008379388,-500.0,0.0001452,2]
[346494767,1735008379427,-500.0,0.0001452,2]
[346494768,1735008379465,-590.81,0.0001452,2]
[346494769,1735008379506,-804.08,0.0001452,2]
[346494770,1735008379549,-500.0,0.0001452,2]
[346494771,1735008379588,-500.0,0.0001452,2]
[346494772,1735008379628,-21595.93,0.0001452,2]
[346494773,1735008379667,-500.0,0.0001452,2]
[346494774,1735008379710,-500.0,0.0001452,2]
[346494775,1735008379751,-1659.16,0.0001452,2]
[346494776,1735008379793,-500.0,0.0001452,2]
[346494777,1735008379832,-500.0,0.0001452,2]
[346494778,1735008379871,-500.0,0.0001452,2]
[346494779,1735008379912,-710.98,0.0001452,2]
[346494780,1735008379952,-500.0,0.0001452,2]
[346494781,1735008379988,-500.0,0.0001452,2]
[346494782,1735008380026,-2986.9,0.0001452,2]
[346494783,1735008380064,-816.78,0.0001452,2]
[346494784,1735008380102,-500.0,0.0001452,2]
[346494785,1735008380139,-577.62,0.0001452,2]
[346494786,1735008380175,-521.99,0.0001452,2]
[346494787,1735008380214,-8175.08,0.0001452,2]
[346494788,1735008380251,-2436.1,0.0001452,2]
[346494789,1735008380290,-2429.26,0.0001452,2]
[346494790,1735008380329,-500.0,0.0001452,2]
[346494791,1735008380366,-500.0,0.0001452,2]
[346494792,1735008380402,-1008.4,0.0001452,2]
[346494793,1735008380440,-500.0,0.0001452,2]
[346494794,1735008380477,-500.0,0.0001452,2]
[346494795,1735008380518,-502.19,0.0001452,2]
[346494796,1735008380556,-614.63,0.0001452,2]
[346494797,1735008380597,-500.0,0.0001452,2]
[346494798,1735008380635,-3129.27,0.0001452,2]
[346494799,1735008380675,-542.24,0.0001452,2]
[346494800,1735008380719,-500.0,0.0001452,2]
[346494801,1735008380756,-500.0,0.0001452,2]
[346494802,1735008380796,-2047.93,0.0001452,2]
[346494803,1735008380838,-8233.59,0.0001452,2]
[346494804,1735008380876,-500.0,0.0001452,2]
[346494805,1735008380914,-677.88,0.0001452,2]
[346494806,1735008380950,-5404.38,0.0001452,2]
[346494807,1735008380988,-818.91,0.0001452,2]
[346494808,1735008381027,-500.0,0.0001452,2]
[346494809,1735008381066,-970.89,0.0001452,2]
[346494810,1735008381104,-7651.66,0.0001452,2]
[346494811,1735008381140,-809.52,0.0001452,2]
[346494812,1735008381178,-500.0,0.0001452,2]
[346494813,1735008381216,-8419.88,0.0001452,2]
[346494814,1735008381254,-860.88,0.0001452,2]
[346494815,1735008381294,-2766.28,0.0001452,2]
[346494816,1735008381334,-2282.28,0.0001452,2]
[346494817,1735008381374,-695.8,0.0001452,2]
[346494818,1735008381412,-3610.4,0.0001452,2]
[346494819,1735008381450,-500.0,0.0001452,2]
[346494820,1735008381488,-2090.42,0.0001452,2]
[346494821,1735008381526,-998.64,0.0001452,2]
[346494822,1735008381564,-500.0,0.0001452,2]
[346494823,1735008381605,-950.94,0.0001452,2]
[346494824,1735008381644,-5259.27,0.0001452,2]
[346494825,1735008381684,-2089.2,0.0001452,2]
[346494826,1735008381723,-1799.95,0.0001452,2]
[346494827,1735008382021,-838.62,0.0001452,2]
[346494828,1735008382068,-500.0,0.0001452,2]
[346494829,1735008382108,-5829.39,0.0001452,2]
[346494830,1735008382151,-1832.71,0.0001452,2]
[346494831,1735008382191,-1283.37,0.0001452,2]
[346494832,1735008382231,-523.84,0.0001452,2]
[346494833,1735008382271,-4312.16,0.0001452,2]
[346494834,1735008382309,-500.0,0.0001452,2]
[346494835,1735008382347,-2132.45,0.0001452,2]
[346494836,1735008382387,-3129.18,0.0001452,2]
[346494837,1735008382427,-500.0,0.0001452,2]
[346494838,1735008382467,-977.58,0.0001452,2]
[346494839,1735008382507,-3183.38,0.0001452,2]
[346494840,1735008382545,-3700.79,0.0001452,2]
[346494841,1735008382587,-597.73,0.0001452,2]
[346494842,1735008382628,-500.0,0.0001452,2]
[346494843,1735008382669,-500.0,0.0001452,2]
[346494844,1735008382714,-633.5,0.0001452,2]
[346494845,1735008382756,-12691.69,0.0001452,2]
[346494846,1735008382798,-647.8,0.0001452,2]
[346494847,1735008382840,-584.22,0.0001452,2]
[346494848,1735008382881,-1455.89,0.0001452,2]
[346494849,1735008382919,-500.0,0.0001452,2]
[346494850,1735008382957,-807.5,0.0001452,2]
[346494851,1735008382995,-500.0,0.0001452,2]
[346494852,1735008383036,-2357.21,0.0001452,2]
[346494853,1735008383077,-500.0,0.0001452,2]
[346494854,1735008383117,-774.07,0.0001452,2]
[346494855,1735008383157,-5767.83,0.0001452,2]
[346494856,1735008383200,-500.0,0.0001452,2]
[346494857,1735008383241,-1570.04,0.0001452,2]
[346494858,1735008383283,-1274.61,0.0001452,2]
[346494859,1735008383326,-2159.81,0.0001452,2]
[346494860,1735008383366,-557.5,0.0001452,2]
[346494861,1735008383407,-500.0,0.0001452,2]
[346494862,1735008383448,-665.71,0.0001452,2]
[346494863,1735008383491,-500.0,0.0001452,2]
[346494864,1735008383533,-998.4,0.0001452,2]
[346494865,1735008383573,-500.0,0.0001452,2]
[346494866,1735008383613,-801.02,0.0001452,2]
[346494867,1735008383653,-500.0,0.0001452,2]
[346494868,1735008383693,-5879.93,0.0001452,2]
[346494869,1735008383732,-2416.12,0.0001452,2]
[346494870,1735008383772,-1466.45,0.0001452,2]
[346494871,1735008383811,-1814.88,0.0001452,2]
[346494872,1735008383849,-617.6,0.0001452,2]
[346494873,1735008383889,-643.35,0.0001452,2]
[346494874,1735008383930,-1281.83,0.0001452,2]
[346494875,1735008383969,-3515.62,0.0001452,2]
[346494876,1735008384008,-529.92,0.0001452,2]
[346494877,1735008384052,-1029.62,0.0001452,2]
[346494878,1735008384091,-558.06,0.0001452,2]
[346494879,1735008384131,-500.0,0.0001452,2]
[346494880,1735008384171,-3788.5,0.0001452,2]
[346494881,1735008384210,-500.0,0.0001452,2]
[346494882,1735008384249,-5650.78,0.0001452,2]
[346494883,1735008384287,-500.0,0.0001452,2]
[346494884,1735008384327,-500.0,0.0001452,2]
[346494885,1735008384367,-500.0,0.0001452,2]
[346494886,1735008384405,-2552.19,0.0001452,2]
[346494887,1735008384444,-2466.62,0.0001452,2]
[346494888,1735008384482,-1364.37,0.0001452,2]
[346494889,1735008384521,-500.0,0.0001452,2]
[346494890,1735008384560,-1322.16,0.0001452,2]
[346494891,1735008384599,-500.0,0.0001452,2]
[346494892,1735008384637,-577.57,0.0001452,2]
[346494893,1735008384676,-500.0,0.0001452,2]
[346494894,1735008384716,-780.33,0.0001452,2]
[346494895,1735008384756,-646.65,0.0001452,2]
[346494896,1735008384796,-1193.88,0.0001452,2]
[346494897,1735008384834,-623.63,0.0001452,2]
[346494898,1735008384873,-580.82,0.0001452,2]
[346494899,1735008384913,-3239.76,0.0001452,2]
[346494900,1735008384954,-500.0,0.0001452,2]
[346494901,1735008384994,-2328.87,0.0001452,2]
[346494902,1735008385034,-1002.87,0.0001452,2]